fUST/lending_fUST_20250924
["ID","MTS","AMOUNT","RATE_DAILY","PERIOD"]
[387384452,1758709850187,-626.3,0.00021643,2]
[387384454,1758709850196,-480.0,0.00021643,2]
[387384456,1758709850205,-480.0,0.00021643,2]
[387384458,1758709850214,-701.89,0.00021643,2]
[387384460,1758709850223,-1122.38,0.00021643,2]
[387384462,1758709850232,-792.25,0.00021643,2]
[387384464,1758709850242,-480.0,0.00021643,2]
[387384466,1758709850251,-260.59,0.00021643,2]
[387384468,1758709850260,-480.0,0.00021643,2]
[387384470,1758709850271,-500.0,0.0002165,2]
[387384472,1758709850280,-500.0,0.0002165,2]
[387384474,1758709850290,-500.0,0.0002165,2]
[387384476,1758709850299,-500.0,0.0002165,2]
[387384478,1758709850308,-500.85707087,0.0002165,2]
[387384480,1758709850318,-500.0,0.0002165,2]
[387384482,1758709850327,-500.0,0.0002165,2]
[387384484,1758709850336,-500.0,0.0002165,2]
[387384486,1758709850350,-500.0,0.0002165,2]
[387384488,1758709850359,-501.93054061,0.0002165,2]
[387384490,1758709850369,-500.0,0.0002165,2]
[387384492,1758709850378,-174.23597462,0.0002165,2]
[387384494,1758709850387,-500.0,0.0002165,2]
[387384496,1758709850397,-500.0,0.0002165,2]
[387384498,1758709850406,-500.0,0.0002165,2]
[387384500,1758709850415,-500.0,0.0002165,2]
[387384502,1758709850426,-500.0,0.0002165,2]
[387384504,1758709850435,-500.56528327,0.00021667,2]
[387384506,1758709850444,-500.0,0.00021667,2]
[387384508,1758709850454,-500.0,0.00021667,2]
[387384510,1758709850462,-400.65810351,0.00021668,2]
[387384520,1758709850555,-480.0,0.00019178,2]
[387384522,1758709850566,-622.14,0.00019178,2]
[387384525,1758709850576,-480.0,0.00019452,2]
[387384527,1758709850585,-622.14,0.00019452,2]
[387384529,1758709850594,-480.0,0.00019726,2]
[387384531,1758709850604,-535.44459126,0.0002,2]
[387384533,1758709850613,-151.0,0.00020273,2]
[387384535,1758709850622,-681.27,0.00020311,2]
[387384537,1758709850631,-99.34189649,0.00021668,2]
[387384539,1758709850641,-500.0,0.00021668,2]
[387384541,1758709850650,-169.154,0.00021672,2]
[387384543,1758709850659,-187.01296331,0.00021675,2]
[387384545,1758709850669,-3516.85,0.00021678,2]
[387384547,1758709850678,-566.32,0.00021678,2]
[387384549,1758709850687,-1369.26,0.00021679,2]
[387384551,1758709850696,-480.0,0.0002168,2]
[387384553,1758709850706,-813.11,0.0002168,2]
[387384555,1758709850716,-500.0,0.00021695,2]
[387384557,1758709850725,-500.0,0.00021695,2]
[387384559,1758709850734,-500.42982475,0.00021695,2]
[387384561,1758709850743,-500.0,0.00021695,2]
[387384563,1758709850752,-500.0,0.00021695,2]
[387384565,1758709850761,-254.09758638,0.00021733,2]
[387384567,1758709850770,-975.0474899,0.00021754,2]
[387384569,1758709850780,-417.15472785,0.00021872,2]
[387384571,1758709850789,-160.0,0.00021872,2]
[387384573,1758709850798,-160.0,0.00021872,2]
[387384575,1758709850807,-233.62170814,0.00021872,2]
[387384577,1758709850817,-532.2324375,0.00021873,2]
[387384579,1758709850826,-160.0,0.00021873,2]
[387384581,1758709850835,-160.0,0.00021873,2]
[387384583,1758709850844,-160.0,0.00021873,2]
[387384585,1758709850853,-1003.02558971,0.00021881,2]
[387384587,1758709850862,-500.0,0.00021881,2]
[387384589,1758709850871,-599.72201016,0.000219,2]
[387384591,1758709850880,-517.13,0.00021917,2]
[387384593,1758709850890,-500.0,0.00021917,2]
[387384595,1758709850900,-500.0,0.00021917,2]
[387384597,1758709850910,-500.0,0.00021917,2]
[387384599,1758709850919,-500.0,0.00021917,2]
[387384601,1758709850928,-500.0,0.00021917,2]
[387384603,1758709850938,-500.0,0.00021917,2]
[387384605,1758709850947,-500.0,0.00021917,2]
[387384607,1758709850956,-500.0,0.00021917,2]
[387384616,1758709851027,-500.0,0.00021917,2]
[387384618,1758709851036,-500.0,0.00021917,2]
[387384620,1758709851046,-523.07291836,0.00021917,2]
[387384622,1758709851054,-480.0,0.00021917,2]
[387384624,1758709851064,-480.0,0.00021917,2]
[387384626,1758709851073,-528.65,0.00021917,2]
[387384628,1758709851082,-1697.26,0.00021917,2]
[387384630,1758709851091,-1180.73,0.00021917,2]
[387384632,1758709851101,-1514.71,0.00021917,2]
[387384634,1758709851110,-480.0,0.00021917,2]
[387384636,1758709851120,-670.87,0.00021917,2]
[387384638,1758709851128,-480.0,0.00021917,2]
[387384640,1758709851137,-836.81,0.00021917,2]
[387384642,1758709851146,-944.2,0.00021917,2]
[387384644,1758709851156,-480.0,0.00021917,2]
[387384646,1758709851166,-480.0,0.00021917,2]
[387384648,1758709851174,-480.0,0.00021917,2]
[387384649,1758709851183,-480.0,0.00021917,2]
[387384651,1758709851192,-1966.2,0.00021917,2]
[387384653,1758709851201,-480.0,0.00021917,2]
[387384655,1758709851211,-480.0,0.00021917,2]
[387384657,1758709851220,-480.0,0.00021917,2]
[387384659,1758709851230,-818.09,0.00021917,2]
[387384661,1758709851239,-626.3,0.00021917,2]
[387384663,1758709851248,-480.0,0.00021917,2]
[387384665,1758709851257,-480.0,0.00021917,2]
[387384667,1758709851266,-701.89,0.00021917,2]
[387384669,1758709851276,-1122.38,0.00021917,2]
[387384671,1758709851285,-792.25,0.00021917,2]
[387384673,1758709851294,-480.0,0.00021917,2]
[387384675,1758709851304,-480.0,0.00021917,2]
[387384677,1758709851313,-151.0,0.0002195,7]
[387384679,1758709851322,-3516.85,0.00021952,2]
[387384681,1758709851331,-566.32,0.00021952,2]
[387384683,1758709851340,-1369.26,0.00021953,2]
[387384685,1758709851352,-458.74,0.00021954,2]
[387384687,1758709851361,-813.11,0.00021954,2]
[387384689,1758709851371,-260.0,0.0002199,2]
[387384691,1758709851380,-356.35020978,0.00022,2]
[387384693,1758709851390,-308.16680235,0.00022008,2]
[387384695,1758709851399,-2351.0,0.00022041,2]
[387384697,1758709851409,-587.0,0.00022041,2]
[387384699,1758709851418,-355.0,0.00022041,2]
[387384701,1758709851429,-2145.23827541,0.00022044,2]
[387384703,1758709851439,-537.07226942,0.00022112,2]
[387384705,1758709851448,-4334.87,0.00022125,2]
[387384707,1758709851457,-1000.0,0.00022186,2]
[387384709,1758709851466,-517.13,0.00022191,2]
[387384711,1758709851476,-480.0,0.00022191,2]
[387384713,1758709851484,-480.0,0.00022191,2]
[387384715,1758709851493,-528.65,0.00022191,2]
[387384717,1758709851502,-1697.26,0.00022191,2]
[387384719,1758709851512,-1180.73,0.00022191,2]
[387384721,1758709851521,-1514.71,0.00022191,2]
[387384723,1758709851530,-480.0,0.00022191,2]
[387384725,1758709851539,-670.87,0.00022191,2]
[387384726,1758709851549,-480.0,0.00022191,2]
[387384728,1758709851558,-836.81,0.00022191,2]
[387384730,1758709851568,-944.2,0.00022191,2]
[387384732,1758709851577,-480.0,0.00022191,2]
[387384734,1758709851586,-340.49,0.00022191,2]
[387384736,1758709851597,-480.0,0.00022191,2]
[387384738,1758709851607,-480.0,0.00022191,2]
[387384740,1758709851617,-1966.2,0.00022191,2]
[387384742,1758709851626,-480.0,0.00022191,2]
[387384744,1758709851635,-480.0,0.00022191,2]
[387384746,1758709851644,-480.0,0.00022191,2]
[387384748,1758709851654,-818.09,0.00022191,2]
[387384750,1758709851663,-626.3,0.00022191,2]
[387384752,1758709851672,-480.0,0.00022191,2]
[387384754,1758709851683,-480.0,0.00022191,2]
[387384756,1758709851693,-701.89,0.00022191,2]
[387384758,1758709851702,-1122.38,0.00022191,2]
[387384760,1758709851711,-792.25,0.00022191,2]
[387384762,1758709851720,-480.0,0.00022191,2]
[387384764,1758709851729,-480.0,0.00022191,2]
[387384766,1758709851739,-1000.0,0.00022198,2]
[387384768,1758709851748,-500.0,0.00022198,2]
[387384770,1758709851757,-1000.0,0.00022198,2]
[387384772,1758709851766,-500.0,0.00022198,2]
[387384774,1758709851775,-580.20644151,0.00022198,2]
[387384776,1758709851784,-500.0,0.00022215,2]
[387384778,1758709851793,-3516.85,0.00022226,2]
[387384780,1758709851802,-566.32,0.00022226,2]
[387384782,1758709851811,-1369.26,0.00022227,2]
[387384784,1758709851821,-813.11,0.00022228,2]
[387384786,1758709851829,-500.66003703,0.00022243,2]
[387384788,1758709851839,-500.0,0.00022243,2]
[387384790,1758709851849,-2351.0,0.00022257,2]
[387384791,1758709851859,-217.5625025,0.00022301,2]
[387384793,1758709851868,-978.0,0.00022336,2]
[387384795,1758709851877,-635.0,0.00022336,2]
[387384797,1758709851886,-2159.0,0.00022336,2]
[387384799,1758709851895,-410.0,0.00022336,2]
[387384801,1758709851906,-517.13,0.00022465,2]
[387384803,1758709851916,-480.0,0.00022465,2]
[387384805,1758709851925,-480.0,0.00022465,2]
[387384807,1758709851939,-528.65,0.00022465,2]
[387384809,1758709851948,-1697.26,0.00022465,2]
[387384811,1758709851957,-1180.73,0.00022465,2]
[387384813,1758709851966,-1514.71,0.00022465,2]
[387384815,1758709851975,-480.0,0.00022465,2]
[387384817,1758709851985,-670.87,0.00022465,2]
[387384819,1758709851994,-480.0,0.00022465,2]
[387384821,1758709852003,-836.81,0.00022465,2]
[387384823,1758709852012,-944.2,0.00022465,2]
[387384825,1758709852022,-480.0,0.00022465,2]
[387384827,1758709852031,-480.0,0.00022465,2]
[387384829,1758709852040,-239.18,0.00022465,2]
[387384831,1758709852049,-1966.2,0.00022465,2]
[387384833,1758709852059,-480.0,0.00022465,2]
[387384835,1758709852067,-480.0,0.00022465,2]
[387384836,1758709852077,-480.0,0.00022465,2]
[387384838,1758709852086,-818.09,0.00022465,2]
[387384841,1758709852096,-626.3,0.00022465,2]
[387384842,1758709852106,-480.0,0.00022465,2]
[387384844,1758709852115,-480.0,0.00022465,2]
[387384846,1758709852123,-701.89,0.00022465,2]
[387384848,1758709852133,-1122.38,0.00022465,2]
[387384850,1758709852142,-792.25,0.00022465,2]
[387384852,1758709852151,-357.06,0.00022465,2]
[387384854,1758709852160,-480.0,0.00022465,2]
[387384856,1758709852169,-500.0,0.00022483,2]
[387384858,1758709852178,-3516.85,0.000225,2]
[387384860,1758709852188,-566.32,0.000225,2]
[387384862,1758709852197,-1369.26,0.00022501,2]
[387384864,1758709852206,-813.11,0.00022502,2]
[387384866,1758709852216,-360.0,0.00022538,2]
[387384868,1758709852224,-500.0,0.00022548,2]
[387384870,1758709852234,-979.27939137,0.00022629,2]
[387384872,1758709852243,-168.0,0.00022655,2]
[387384874,1758709852252,-183.185783,0.00022668,2]
[387384876,1758709852262,-500.0,0.00022734,2]
[387384878,1758709852272,-821.31982513,0.00022736,2]
[387384880,1758709852281,-517.13,0.00022739,2]
[387384882,1758709852290,-480.0,0.00022739,2]
[387384883,1758709852299,-480.0,0.00022739,2]
[387384885,1758709852309,-528.65,0.00022739,2]
[387384887,1758709852318,-1697.26,0.00022739,2]
[387384895,1758709852383,-1180.73,0.00022739,2]
[387384897,1758709852397,-1514.71,0.00022739,2]
[387384899,1758709852407,-283.21430676,0.00022739,2]
[387384901,1758709852417,-670.87,0.00022739,2]
[387384903,1758709852426,-489.00017576,0.00022739,2]
[387384905,1758709852435,-836.81,0.00022739,2]
[387384906,1758709852445,-944.2,0.00022739,2]
[387384908,1758709852454,-480.0,0.00022739,2]
[387384910,1758709852463,-480.0,0.00022739,2]
[387384912,1758709852473,-1966.2,0.00022739,2]
[387384914,1758709852483,-480.0,0.00022739,2]
[387384916,1758709852497,-480.0,0.00022739,2]
[387384918,1758709852508,-480.0,0.00022739,2]
[387384921,1758709852518,-818.09,0.00022739,2]
[387384923,1758709852528,-626.3,0.00022739,2]
[387384924,1758709852537,-480.0,0.00022739,2]
[387384926,1758709852546,-480.0,0.00022739,2]
[387384928,1758709852555,-701.89,0.00022739,2]
[387384930,1758709852564,-1122.38,0.00022739,2]
[387384932,1758709852574,-792.25,0.00022739,2]
[387384934,1758709852583,-480.0,0.00022739,2]
[387384936,1758709852593,-1001.74645979,0.00022746,2]
[387384938,1758709852602,-1517.39969314,0.00022746,2]
[387384940,1758709852611,-450.5340034,0.00022765,2]
[387384942,1758709852621,-3516.85,0.00022774,2]
[387384944,1758709852629,-566.32,0.00022774,2]
[387384946,1758709852638,-1369.26,0.00022775,2]
[387384948,1758709852648,-813.11,0.00022776,2]
[387384950,1758709852657,-165.7184018,0.00022836,2]
[387384952,1758709852666,-4315.94321793,0.00022876,2]
[387384954,1758709852675,-250.0,0.00022947,2]
[387384956,1758709852684,-234.837,0.00022947,2]
[387384957,1758709852693,-1187.2138241,0.00022972,2]
[387384959,1758709852703,-800.0,0.00023004,2]
[387384961,1758709852712,-517.13,0.00023013,2]
[387384963,1758709852721,-480.0,0.00023013,2]
[387384965,1758709852731,-480.0,0.00023013,2]
[387384967,1758709852740,-528.65,0.00023013,2]
[387384969,1758709852750,-1697.26,0.00023013,2]
[387384971,1758709852759,-1180.73,0.00023013,2]
[387384973,1758709852768,-1514.71,0.00023013,2]
[387384975,1758709852777,-670.87,0.00023013,2]
[387384977,1758709852786,-836.81,0.00023013,2]
[387384979,1758709852796,-944.2,0.00023013,2]
[387384981,1758709852805,-480.0,0.00023013,2]
[387384983,1758709852814,-480.0,0.00023013,2]
[387384985,1758709852823,-1966.2,0.00023013,2]
[387384987,1758709852833,-480.0,0.00023013,2]
[387384989,1758709852841,-480.0,0.00023013,2]
[387384991,1758709852851,-480.0,0.00023013,2]
[387384993,1758709852861,-151.0,0.00023013,7]
[387384995,1758709852871,-818.09,0.00023013,2]
[387384997,1758709852880,-151.0,0.00023013,7]
[387384999,1758709852890,-626.3,0.00023013,2]
[387385001,1758709852899,-480.0,0.00023013,2]
[387385003,1758709852908,-480.0,0.00023013,2]
[387385004,1758709852916,-701.89,0.00023013,2]
[387385006,1758709852926,-1122.38,0.00023013,2]
[387385008,1758709852935,-792.25,0.00023013,2]
[387385010,1758709852944,-480.0,0.00023013,2]
[387385012,1758709852953,-5418.59,0.00023047,2]
[387385014,1758709852962,-3516.85,0.00023048,2]
[387385016,1758709852971,-566.32,0.00023048,2]
[387385018,1758709852980,-1369.26,0.00023049,2]
[387385020,1758709852990,-813.11,0.0002305,2]
[387385022,1758709852999,-215.098212,0.00023053,7]
[387385024,1758709853008,-460.0,0.00023086,2]
[387385026,1758709853017,-800.0,0.0002311,2]
[387385028,1758709853026,-2145.23827541,0.00023116,2]
[387385030,1758709853035,-517.13,0.00023287,2]
[387385031,1758709853045,-480.0,0.00023287,2]
[387385033,1758709853054,-480.0,0.00023287,2]
[387385035,1758709853063,-528.65,0.00023287,2]
[387385037,1758709853071,-1697.26,0.00023287,2]
[387385039,1758709853081,-856.1,0.00023287,2]
[387385041,1758709853090,-1180.73,0.00023287,2]
[387385043,1758709853100,-1514.71,0.00023287,2]
[387385045,1758709853108,-670.87,0.00023287,2]
[387385047,1758709853117,-836.81,0.00023287,2]
[387385049,1758709853126,-944.2,0.00023287,2]
[387385051,1758709853135,-480.0,0.00023287,2]
[387385053,1758709853144,-480.0,0.00023287,2]
[387385055,1758709853153,-1966.2,0.00023287,2]
[387385057,1758709853162,-480.0,0.00023287,2]
[387385059,1758709853171,-480.0,0.00023287,2]
[387385061,1758709853180,-480.0,0.00023287,2]
[387385062,1758709853191,-818.09,0.00023287,2]
[387385064,1758709853200,-626.3,0.00023287,2]
[387385066,1758709853209,-480.0,0.00023287,2]
[387385068,1758709853218,-480.0,0.00023287,2]
[387385070,1758709853227,-701.89,0.00023287,2]
[387385072,1758709853236,-1122.38,0.00023287,2]
[387385074,1758709853246,-792.25,0.00023287,2]
[387385076,1758709853254,-480.0,0.00023287,2]
[387385078,1758709853264,-245.0,0.00023288,7]
[387385080,1758709853273,-3516.85,0.00023322,2]
[387385082,1758709853282,-566.32,0.00023322,2]
[387385084,1758709853292,-1369.26,0.00023323,2]
[387385086,1758709853301,-813.11,0.00023324,2]
[387385088,1758709853310,-151.0,0.00023333,2]
[387385090,1758709853319,-151.0,0.00023333,2]
[387385092,1758709853328,-151.0,0.00023333,2]
[387385094,1758709853337,-500.0,0.00023333,2]
[387385096,1758709853349,-500.0,0.00023333,2]
[387385098,1758709853358,-151.0,0.00023333,2]
[387385100,1758709853367,-13872.07756709,0.0002334,2]
[387385102,1758709853376,-168.0,0.0002338,2]
[387385103,1758709853385,-6885.18344889,0.0002344,2]
[387385105,1758709853395,-86593.23490046,0.0002344,2]
[387385108,1758709853409,-5083.92735021,0.0002344,2]
[387385262,1758709855194,-327.98864814,0.0002344,2]
[387385264,1758709855205,-1326.66510949,0.0002344,2]
[387385266,1758709855216,-8838.13746608,0.0002344,2]
[387385293,1758709855462,-315.98676429,0.00019178,2]
[387385295,1758709855479,-164.01323571,0.00019178,2]
[387385297,1758709855488,-622.14,0.00019726,2]
[387385299,1758709855498,-581.94952572,0.0002,2]
[387385302,1758709855514,-40.19047428,0.0002,2]
[387385304,1758709855523,-622.14,0.00020273,2]
[387385306,1758709855533,-529.82702958,0.00020547,2]
[387385330,1758709855749,-436.34609954,0.00019178,2]
[387386880,1758710058725,377.74,0.00022553,30]
[387386881,1758710059194,755.49,0.00023626,30]
[387386912,1758710253284,5000.0,0.0002011,13]
[387386913,1758710275918,5000.0,0.0002011,13]
[387386914,1758710279873,275.37,0.00015984,2]
[387386918,1758710299425,5000.0,0.0002011,13]
[387386919,1758710322021,5000.0,0.00018001,2]
[387386920,1758710345950,4724.64,0.00018001,2]
[387386921,1758710345972,275.36,0.00018001,2]
[387386922,1758710371273,5000.0,0.00018001,2]
[387386923,1758710397278,4724.65,0.00018001,2]
[387386924,1758710397306,275.35,0.00018001,2]
[387386925,1758710421807,5000.0,0.00018001,2]
[387386926,1758710445960,4724.66,0.00018001,2]
[387386927,1758710445980,275.34,0.00018001,2]
[387386928,1758710454170,246.536463,0.00017648,2]
[387386929,1758710470372,5000.0,0.00018001,2]
[387386936,1758710494369,4478.133537,0.00018001,2]
[387386937,1758710494396,521.866463,0.00018001,2]
[387386947,1758710520188,5000.0,0.00018001,2]
[387386962,1758710544295,4478.143537,0.00018001,2]
[387386963,1758710544320,521.856463,0.00018001,2]
[387386975,1758710568886,5000.0,0.00018001,2]
[387386977,1758710593925,4478.153537,0.00018001,2]
[387386978,1758710593949,521.846463,0.00018001,2]
[387386982,1758710618730,5000.0,0.00018001,2]
[387386983,1758710643815,4478.163537,0.00018001,2]
[387386984,1758710643839,521.836463,0.00018001,2]
[387386985,1758710668178,5000.0,0.00018001,2]
[387387011,1758710693721,4478.173537,0.00018001,2]
[387387012,1758710693745,521.826463,0.00018001,2]
[387387133,1758710718371,5000.0,0.00018001,2]
[387387134,1758710743646,4478.183537,0.00018001,2]
[387387135,1758710743672,521.816463,0.00018001,2]
[387387136,1758710767816,5000.0,0.00018001,2]
[387387139,1758710793360,5000.0,0.00018001,2]
[387387140,1758710814131,-216.43179025,0.00018061,2]
[387387141,1758710817281,5000.0,0.00018001,2]
[387387145,1758710841932,0.01,0.00018001,2]
[387387146,1758710841956,4999.99,0.00018001,2]
[387387148,1758710866427,5000.0,0.00018001,2]
[387387152,1758710890963,0.02,0.00018001,2]
[387387153,1758710890985,4999.98,0.00018001,2]
[387387154,1758710892567,183.185783,0.00017961,2]
[387387160,1758710916051,4816.844217,0.00018001,2]
[387387161,1758710916074,183.155783,0.00018001,2]
[387387178,1758710939976,5000.0,0.00018001,2]
[387387189,1758710964800,4816.854217,0.00018001,2]
[387387190,1758710964821,183.145783,0.00018001,2]
[387387196,1758710989013,5000.0,0.00018001,2]
[387387197,1758711013905,4816.864217,0.00018001,2]
[387387198,1758711013927,183.135783,0.00018001,2]
[387387216,1758711032482,-244.56777625,0.00018061,2]
[387387217,1758711032492,-500.0,0.00018062,2]
[387387218,1758711032502,-1000.0,0.00018194,2]
[387387219,1758711032512,-666.0,0.00018194,2]
[387387220,1758711032521,-196.88878123,0.0001823,2]
[387387221,1758711032531,-500.0,0.00018312,2]
[387387222,1758711032540,-204.32543502,0.00019109,2]
[387387223,1758711032551,-300.0,0.00019174,2]
[387387224,1758711032560,-300.0,0.00019174,2]
[387387225,1758711032570,-300.0,0.00019174,2]
[387387226,1758711032579,-1200.0,0.00019174,2]
[387387227,1758711032589,-1200.0,0.00019175,2]
[387387228,1758711032598,-382.95447309,0.00019177,2]
[387387229,1758711032608,-312.75152698,0.00019177,2]
[387387230,1758711032618,-515.97720912,0.00019177,2]
[387387231,1758711032628,-480.0,0.00019178,2]
[387387232,1758711032637,-480.0,0.00019178,2]
[387387233,1758711032647,-369.4033403,0.00019178,2]
[387387234,1758711032657,-480.0,0.00019178,2]
[387387235,1758711032667,-480.0,0.00019178,2]
[387387236,1758711032677,-480.0,0.00019178,2]
[387387237,1758711032687,-480.0,0.00019178,2]
[387387238,1758711032697,-480.57877998,0.00019178,2]
[387387239,1758711032706,-306.90162526,0.00019178,2]
[387387240,1758711032715,-480.0,0.00019178,2]
[387387241,1758711032724,-502.1090063,0.00019178,2]
[387387242,1758711032733,-480.37531924,0.00019178,2]
[387387274,1758711033951,-10.80984925,0.00019178,2]
[387387276,1758711033963,-251.7705682,0.00019178,2]
[387387327,1758711038323,-228.2294318,0.00019178,2]
[387387330,1758711038335,-38.5705682,0.00019178,2]
[387387333,1758711038349,-422.01029986,0.00019178,2]
[387387335,1758711038360,-43.49950334,0.00019178,2]
[387387337,1758711038374,-436.50049666,0.00019178,2]
[387387339,1758711038385,-480.0,0.00019178,2]
[387387342,1758711038396,-84.49948924,0.00019178,2]
[387387344,1758711038410,-395.50051076,0.00019178,2]
[387387346,1758711038422,-480.0,0.00019178,2]
[387387349,1758711038433,-480.0,0.00019178,2]
[387387351,1758711038445,-326.84948924,0.00019178,2]
[387387353,1758711038459,-153.15051076,0.00019178,2]
[387387355,1758711038470,-310.36595758,0.00019178,2]
[387387358,1758711038484,-169.63404242,0.00019178,2]
[387387360,1758711038495,-480.0,0.00019178,2]
[387387362,1758711038506,-434.36121454,0.00019178,2]
[387387366,1758711038536,-5000.0,0.00018986,2]
[387387368,1758711038547,-45.63878546,0.00019178,2]
[387387371,1758711038557,-480.0,0.00019178,2]
[387387373,1758711038568,-480.0,0.00019178,2]
[387387375,1758711038579,-480.0,0.00019178,2]
[387387377,1758711038590,-480.0,0.00019178,2]
[387387379,1758711038606,-480.0,0.00019178,2]
[387387381,1758711038618,-480.0,0.00019178,2]
[387387383,1758711038630,-480.0,0.00019178,2]
[387387386,1758711038641,-480.0,0.00019178,2]
[387387388,1758711038653,-484.24631534,0.00019178,2]
[387387390,1758711038664,-480.0,0.00019178,2]
[387387392,1758711038675,-480.0,0.00019178,2]
[387387394,1758711038686,-491.27986542,0.00019178,2]
[387387396,1758711038697,-480.0,0.00019178,2]
[387387399,1758711038707,-480.0,0.00019178,2]
[387387401,1758711038718,-480.0,0.00019178,2]
[387387402,1758711038728,-482.88,0.00019178,2]
[387387403,1758711038739,-480.0,0.00019178,2]
[387387404,1758711038750,-480.0,0.00019178,2]
[387387405,1758711038761,-480.0,0.00019178,2]
[387387406,1758711038772,-480.0,0.00019178,2]
[387387407,1758711038782,-480.0,0.00019178,2]
[387387408,1758711038793,-480.0,0.00019178,2]
[387387409,1758711038802,-480.0,0.00019178,2]
[387387410,1758711038811,-480.0,0.00019178,2]
[387387411,1758711038821,-480.0,0.00019178,2]
[387387412,1758711038952,-480.0,0.00019178,2]
[387387413,1758711038964,-480.0,0.00019178,2]
[387387414,1758711038974,-480.0,0.00019178,2]
[387387415,1758711038983,-480.0,0.00019178,2]
[387387416,1758711038993,-480.0,0.00019178,2]
[387387417,1758711039002,-485.56264867,0.00019178,2]
[387387418,1758711039012,-480.0,0.00019178,2]
[387387419,1758711039021,-480.0,0.00019178,2]
[387387420,1758711039030,-480.0,0.00019178,2]
[387387421,1758711039040,-480.0,0.00019178,2]
[387387423,1758711039049,-480.0,0.00019178,2]
[387387425,1758711039058,-480.0,0.00019178,2]
[387387427,1758711039068,-1330.65,0.00019178,2]
[387387429,1758711039077,-1182.39323314,0.00019178,2]
[387387431,1758711039090,-148.25676686,0.00019178,2]
[387387433,1758711039099,-1330.65,0.00019178,2]
[387387435,1758711039109,-1330.65,0.00019178,2]
[387387437,1758711039118,-1330.65,0.00019178,2]
[387387439,1758711039128,-480.0,0.00019178,2]
[387387442,1758711039138,-480.0,0.00019178,2]
[387387444,1758711039147,-480.0,0.00019178,2]
[387387446,1758711039157,-480.0,0.00019178,2]
[387387448,1758711039166,-480.0,0.00019178,2]
[387387450,1758711039175,-387.60900872,0.00019178,2]
[387387452,1758711039186,-92.39099128,0.00019178,2]
[387387454,1758711039198,-484.35572372,0.00019178,2]
[387387456,1758711039208,-480.0,0.00019178,2]
[387387458,1758711039217,-480.0,0.00019178,2]
[387387460,1758711039227,-450.69882368,0.00019178,2]
[387387462,1758711039238,-480.0,0.00019178,2]
[387387464,1758711039247,-480.0,0.00019178,2]
[387387466,1758711039255,-480.0,0.00019178,2]
[387387468,1758711039265,-480.0,0.00019178,2]
[387387470,1758711039275,-480.0,0.00019178,2]
[387387472,1758711039284,-483.0192022,0.00019178,2]
[387387474,1758711039293,-480.0,0.00019178,2]
[387387476,1758711039303,-480.0,0.00019178,2]
[387387477,1758711039312,-480.0,0.00019178,2]
[387387480,1758711039322,-480.0,0.00019178,2]
[387387481,1758711039331,-480.0,0.00019178,2]
[387387484,1758711039341,-480.0,0.00019178,2]
[387387486,1758711039350,-480.0,0.00019178,2]